fUSD/lending_fUSD_20260404
["ID","MTS","AMOUNT","RATE_DAILY","PERIOD"]
[419705649,1775325042179,-500.0,0.00015899,2]
[419705650,1775325042189,-500.0,0.00015899,2]
[419705651,1775325042200,-500.0,0.00015899,2]
[419705652,1775325042210,-526.27399255,0.00015899,2]
[419705653,1775325042220,-500.0,0.00015899,2]
[419705654,1775325042229,-500.0,0.00015899,2]
[419705655,1775325042239,-504353.7605,0.000159,2]
[419705656,1775325042248,-604.90515633,0.000159,2]
[419705657,1775325042257,-154.44365077,0.000159,2]
[419705658,1775325042266,-151.0,0.000159,2]
[419705659,1775325042275,-151.0,0.000159,2]
[419705660,1775325042284,-278.927616,0.000159,2]
[419705661,1775325042293,-1044.444306,0.000159,2]
[419705662,1775325042302,-1581.7372,0.000159,2]
[419705663,1775325042311,-1044.444306,0.000159,2]
[419705664,1775325042320,-1581.7372,0.000159,2]
[419705665,1775325042329,-1044.444306,0.000159,2]
[419705666,1775325042339,-1581.7372,0.000159,2]
[419705667,1775325042349,-1044.444306,0.000159,2]
[419705668,1775325042358,-1581.7372,0.000159,2]
[419705669,1775325042368,-181.1958867,0.000159,2]
[419705670,1775325042377,-151.0,0.000159,2]
[419705671,1775325042387,-151.0,0.000159,2]
[419705672,1775325042397,-242.216241,0.000159,2]
[419705673,1775325042406,-3055.36057846,0.000159,2]
[419705674,1775325042415,-242.216241,0.000159,2]
[419705675,1775325042424,-242.216241,0.000159,2]
[419705676,1775325042433,-242.216241,0.000159,2]
[419705677,1775325042443,-542.549929,0.000159,2]
[419705678,1775325042452,-151.0,0.000159,2]
[419705679,1775325042462,-151.0,0.000159,2]
[419705680,1775325042471,-542.549929,0.000159,2]
[419705681,1775325042480,-542.549929,0.000159,2]
[419705682,1775325042490,-151.0,0.000159,2]
[419705683,1775325042500,-542.549929,0.000159,2]
[419705684,1775325042509,-1609.226141,0.000159,2]
[419705685,1775325042518,-1609.226141,0.000159,2]
[419705686,1775325042527,-735.594438,0.000159,2]
[419705687,1775325042536,-1609.226141,0.000159,2]
[419705688,1775325042545,-735.594438,0.000159,2]
[419705689,1775325042554,-1609.226141,0.000159,2]
[419705690,1775325042565,-735.594438,0.000159,2]
[419705691,1775325042575,-735.594438,0.000159,2]
[419705692,1775325042585,-217.47992615,0.000159,2]
[419705693,1775325042597,-193.77271651,0.000159,2]
[419705694,1775325042606,-151.0,0.000159,2]
[419705695,1775325042615,-151.0,0.000159,2]
[419705696,1775325042624,-151.0,0.000159,2]
[419705697,1775325042635,-151.0,0.000159,2]
[419705698,1775325042645,-151.0,0.000159,2]
[419705699,1775325042655,-160.9357,0.000159,2]
[419705700,1775325042663,-2404.16423302,0.000159,2]
[419705701,1775325042672,-2000.0,0.00015901,2]
[419705702,1775325042681,-8803.7317018,0.00015907,2]
[419705703,1775325042691,-621483.0289113,0.00015907,2]
[419705704,1775325042703,-151.0,0.00015907,2]
[419705705,1775325042715,-151.0,0.00015907,2]
[419705706,1775325042725,-1044.444306,0.00015907,2]
[419705707,1775325042735,-1581.7372,0.00015907,2]
[419705708,1775325042745,-1044.444306,0.00015907,2]
[419705709,1775325042755,-1581.7372,0.00015907,2]
[419705710,1775325042764,-1044.444306,0.00015907,2]
[419705711,1775325042774,-1581.7372,0.00015907,2]
[419705712,1775325042784,-1044.444306,0.00015907,2]
[419705713,1775325042793,-1581.7372,0.00015907,2]
[419705714,1775325042802,-151.0,0.00015907,2]
[419705715,1775325042811,-151.0,0.00015907,2]
[419705716,1775325042820,-242.216241,0.00015907,2]
[419705717,1775325042829,-242.216241,0.00015907,2]
[419705718,1775325042838,-242.216241,0.00015907,2]
[419705719,1775325042847,-242.216241,0.00015907,2]
[419705720,1775325042856,-542.549929,0.00015907,2]
[419705721,1775325042865,-151.0,0.00015907,2]
[419705722,1775325042874,-151.0,0.00015907,2]
[419705723,1775325042883,-542.549929,0.00015907,2]
[419705724,1775325042893,-542.549929,0.00015907,2]
[419705725,1775325042902,-151.0,0.00015907,2]
[419705726,1775325042911,-542.549929,0.00015907,2]
[419705727,1775325042922,-1609.226141,0.00015907,2]
[419705728,1775325042932,-1609.226141,0.00015907,2]
[419705729,1775325042941,-735.594438,0.00015907,2]
[419705730,1775325042950,-1609.226141,0.00015907,2]
[419705731,1775325042959,-735.594438,0.00015907,2]
[419705732,1775325042968,-1609.226141,0.00015907,2]
[419705733,1775325042977,-735.594438,0.00015907,2]
[419705734,1775325042986,-735.594438,0.00015907,2]
[419705735,1775325042995,-151.0,0.00015907,2]
[419705736,1775325043004,-151.0,0.00015907,2]
[419705737,1775325043013,-151.0,0.00015907,2]
[419705738,1775325043023,-151.0,0.00015907,2]
[419705739,1775325043032,-273.978909,0.00015907,2]
[419705740,1775325043041,-150.0,0.00015912,2]
[419705741,1775325043052,-1000.0,0.00015938,2]
[419705742,1775325043062,-307.35572359,0.00015973,2]
[419705743,1775325043071,-500.0,0.00015973,2]
[419705744,1775325043080,-500.0,0.00015973,2]
[419705745,1775325043090,-150.0,0.00015976,2]
[419705746,1775325043099,-334.34591024,0.0001599,2]
[419705747,1775325043109,-500.0,0.00015999,2]
[419705748,1775325043118,-500.0,0.00015999,2]
[419705749,1775325043127,-500.0,0.00015999,2]
[419705750,1775325043136,-500.0,0.00015999,2]
[419705751,1775325043146,-500.0,0.00015999,2]
[419705752,1775325043155,-500.0,0.00015999,2]
[419705753,1775325043165,-500.0,0.00015999,2]
[419705754,1775325043174,-500.0,0.00015999,2]
[419705755,1775325043184,-500.0,0.00015999,2]
[419705756,1775325043193,-625.0,0.00015999,2]
[419705757,1775325043202,-500.0,0.00015999,2]
[419705758,1775325043212,-500.0,0.00015999,2]
[419705759,1775325043221,-338.90319663,0.00015999,2]
[419705760,1775325043230,-500.0,0.00015999,2]
[419705761,1775325043239,-500.0,0.00015999,2]
[419705762,1775325043248,-500.0,0.00015999,2]
[419705763,1775325043258,-500.0,0.00015999,2]
[419705764,1775325043268,-500.0,0.00015999,2]
[419705765,1775325043498,-500.0,0.00015999,2]
[419705766,1775325043508,-500.0,0.00015999,2]
[419705767,1775325043519,-230.01375163,0.00015999,2]
[419705768,1775325043529,-150.0,0.00016,2]
[419705769,1775325043539,-150.0,0.00016,2]
[419705770,1775325043549,-150.0,0.00016,2]
[419705771,1775325043559,-150.0,0.00016,2]
[419705772,1775325043568,-150.0,0.00016,2]
[419705773,1775325043578,-150.0,0.00016,2]
[419705774,1775325043587,-150.0,0.00016,2]
[419705775,1775325043597,-150.0,0.00016,2]
[419705776,1775325043607,-150.0,0.00016,2]
[419705777,1775325043616,-458639.62779321,0.00016,2]
[419705778,1775325043626,-2836674.20924067,0.00016,2]
[419705779,1775325044386,-695.34,0.00014416,2]
[419705780,1775325044398,-1819.1209591,0.00014416,2]
[419705781,1775325044411,-504.28224,0.00014416,2]
[419705782,1775325044423,-1644.00000002,0.00014416,2]
[419705783,1775325044434,-454.35,0.00014416,2]
[419705784,1775325044446,-390.204,0.00014416,2]
[419705785,1775325044457,-1135.96567531,0.00014416,2]
[419705786,1775325044880,-0.54217479,0.00014416,2]
[419705787,1775325044892,-6670.1616179,0.00014416,2]
[419705788,1775325044902,-1217.0,0.00015803,2]
[419705789,1775325044911,-78942.6619941,0.00016,2]
[419705790,1775325044922,-1430.81019853,0.00016,2]
[419705791,1775325045080,-1960.78,0.00011507,2]
[419705792,1775325045089,-113817.78314832,0.00016,2]
[419705793,1775325045100,-16337.6022456,0.00016,2]
[419705794,1775325045111,-1138.98655423,0.00016,2]
[419705795,1775325045122,-2315.09651318,0.00016,2]
[419705796,1775325045133,-10530.45786817,0.00016,2]
[419705797,1775325045146,-475.80353924,0.00016,2]
[419705798,1775325045158,-651.98732006,0.00016,2]
[419705799,1775325045169,-36884.8876836,0.00016,2]
[419705800,1775325045222,-1021.8080887,0.00016,2]
[419705801,1775325045232,-4544.0,0.00016,2]
[419705803,1775325045980,-7629.51241606,0.00014911,2]
[419705804,1775325045994,-673.28,0.00014911,2]
[419705805,1775325046006,-385.86598933,0.00014911,2]
[419705806,1775325046028,-4625.30826173,0.00014911,2]
[419705807,1775325046037,-20836.97869196,0.00016,2]
[419705811,1775325046397,-78692.81738217,0.00016,2]
[419705812,1775325046413,-494.61771879,0.00016,2]
[419705813,1775325046493,-4227.99008592,0.00016,2]
[419705814,1775325046504,-651.98542784,0.00016,2]
[419705815,1775325046515,-423.27089705,0.00016,2]
[419705816,1775325046526,-8077.5150648,0.00016,2]
[419705817,1775325046555,-9112.62272043,0.00016,2]
[419705818,1775325046566,-11238.40827542,0.00016,2]
[419705819,1775325046577,-701.11031412,0.00016,2]
[419705820,1775325047148,-500.0,0.00016,2]
[419705821,1775325047160,-4750.0309358,0.00016,2]
[419705822,1775325047202,-4051.58577808,0.00016,2]
[419705823,1775325047216,-341.04,0.00016,2]
[419705824,1775325047228,-5583.61883166,0.00016,2]
[419705825,1775325047468,-3594.06331873,0.00016,2]
[419705826,1775325047480,-658.7507,0.00016,2]
[419705827,1775325047577,-1342.2,0.00016,2]
[419705828,1775325047590,-5700.45216036,0.00016,2]
[419705861,1775325938873,-250.0,0.000105,5]
[419705862,1775325938955,-283.0,0.000105,5]
[419705863,1775326110116,241.18,6.677e-05,2]
[419705864,1775326110292,241.18,7.029e-05,2]
[419705865,1775326110495,241.18,7.38e-05,2]
[419705866,1775326110682,241.18,7.732e-05,2]
[419705867,1775326110876,241.18,8.083e-05,2]
[419705868,1775326111073,241.18,8.435e-05,2]
[419705869,1775326111259,241.18,8.786e-05,2]
[419705870,1775326111451,241.18,9.138e-05,2]
[419705871,1775326111655,241.18,9.489e-05,2]
[419705878,1775326232104,-241.18,9.841e-05,2]
[419705880,1775326232113,-498.83793856,0.0001,2]
[419705883,1775326232140,-1446.08335075,0.0001,2]
[419705885,1775326232150,-777.16139027,0.0001,2]
[419705887,1775326232160,-1355.74048324,0.0001,2]
[419705890,1775326232172,-6481.66793793,0.0001,2]
[419705892,1775326232181,-348.56597105,0.0001,2]
[419705894,1775326232191,-250.0,0.00010016,2]
[419705895,1775326232201,-241.18,0.00010192,2]
[419705896,1775326232209,-241.18,0.00010543,2]
[419705897,1775326232219,-6288.02983112,0.000107,2]
[419705898,1775326232228,-250.0,0.00010825,2]
[419705899,1775326232237,-241.18,0.00010895,2]
[419705900,1775326232247,-241.18,0.00011246,2]
[419705901,1775326232256,-241.18,0.00011598,2]
[419705902,1775326232266,-669.419,0.0001166,2]
[419705903,1775326232276,-241.18,0.00011949,2]
[419705904,1775326232285,-241.18,0.00012301,2]
[419705905,1775326232294,-161.86,0.00012344,2]
[419705906,1775326232304,-250.0,0.00012419,2]
[419705907,1775326232313,-309.8604162,0.000125,2]
[419705908,1775326232323,-321.0,0.00012624,2]
[419705909,1775326232333,-192.0,0.00012649,2]
[419705910,1775326232343,-241.18,0.00012652,2]
[419705911,1775326232353,-418.79,0.00012708,2]
[419705912,1775326232363,-150.0,0.00012987,2]
[419705913,1775326232373,-250.0,0.00013,2]
[419705914,1775326232382,-241.18,0.00013004,2]
[419705915,1775326232392,-241.18,0.00013355,2]
[419705916,1775326232402,-300.0,0.00013424,2]
[419705917,1775326232411,-1200.0,0.00013424,2]
[419705918,1775326232420,-3240.0,0.00013425,2]
[419705919,1775326232430,-300.0,0.00013434,2]
[419705920,1775326232440,-7611.71,0.00013436,2]
[419705921,1775326232449,-5065.45,0.00013506,2]
[419705922,1775326232459,-200.0,0.00013652,2]
[419705923,1775326232470,-1837.51,0.00013652,2]
[419705924,1775326232480,-1629.44020132,0.00013683,2]
[419705925,1775326232489,-768.13173308,0.00013697,2]
[419705926,1775326232498,-150.0,0.00013697,2]
[419705927,1775326232508,-500.0,0.00013698,2]
[419705928,1775326232517,-500.0,0.00013698,2]
[419705929,1775326232526,-500.0,0.00013698,2]
[419705930,1775326232535,-481.24476443,0.00013698,2]
[419705931,1775326232545,-500.0,0.00013698,2]
[419705932,1775326232554,-500.0,0.00013698,2]
[419705933,1775326232563,-500.0,0.00013698,2]
[419705934,1775326232572,-500.0,0.00013698,2]
[419705935,1775326232582,-500.0,0.00013698,2]
[419705936,1775326232591,-500.0,0.00013698,2]
[419705937,1775326232600,-625.0,0.00013698,2]
[419705938,1775326232610,-500.0,0.00013698,2]
[419705939,1775326232621,-500.0,0.00013698,2]
[419705940,1775326232631,-500.0,0.00013698,2]
[419705941,1775326232640,-500.0,0.00013698,2]
[419705942,1775326232649,-500.0,0.00013698,2]
[419705943,1775326232659,-500.0,0.00013698,2]
[419705944,1775326232668,-500.0,0.00013698,2]
[419705945,1775326232678,-500.0,0.00013698,2]
[419705946,1775326232688,-500.0,0.00013698,2]
[419705947,1775326232698,-230.01375163,0.00013698,2]
[419705948,1775326232707,-500.0,0.00013698,2]
[419705949,1775326232716,-500.0,0.00013698,2]
[419705950,1775326232726,-345.55618054,0.00013698,2]
[419705951,1775326232735,-500.0,0.00013698,2]
[419705952,1775326232744,-500.0,0.00013698,2]
[419705953,1775326232755,-500.0,0.00013698,2]
[419705954,1775326232766,-500.0,0.00013698,2]
[419705955,1775326232775,-338.90319663,0.00013698,2]
[419705956,1775326232784,-14.05349912,0.00013699,2]
[419705957,1775326232825,-135.94650088,0.00013699,2]
[419705958,1775326232834,-529.85317769,0.00013755,2]
[419705959,1775326232846,-343.32323318,0.00013755,2]
[419705960,1775326232900,-454.55387908,0.00013755,2]
[419705964,1775326237906,-916.72797296,0.00013755,2]
[419705965,1775326237918,-486.65173709,0.00013755,2]
[419705966,1775326237927,-577.0,0.00013914,2]
[419705967,1775326237937,-150.0,0.00013973,2]
[419705968,1775326237946,-500.0,0.00014356,2]
[419705969,1775326237955,-900.0,0.00014356,2]
[419705970,1775326237964,-150.0,0.000144,2]
[419705971,1775326237973,-150.0,0.000144,2]
[419705972,1775326237982,-150.0,0.000144,2]
[419705973,1775326237992,-150.0,0.000144,2]
[419705974,1775326238001,-150.0,0.000144,2]
[419705975,1775326238010,-150.0,0.000144,2]
[419705976,1775326238019,-150.0,0.000144,2]
[419705977,1775326238028,-150.0,0.000144,2]
[419705978,1775326238038,-150.0,0.000144,2]
[419705979,1775326238047,-150.0,0.000144,2]
[419705980,1775326238056,-150.0,0.000144,2]
[419705981,1775326238065,-1068.36004095,0.000144,2]
[419705982,1775326238078,-1739.63995905,0.000144,2]
[419705983,1775326238088,-171.934,0.00014443,2]
[419705984,1775326238097,-2599.848,0.00014443,2]
[419705985,1775326238106,-150.0,0.00014464,2]
[419705986,1775326238115,-222.44209885,0.00014465,2]
[419705987,1775326238127,-222.77930115,0.00014465,2]
[419705988,1775326238136,-2500.0,0.00014465,2]
[419705989,1775326238156,-5113.602,0.00014465,2]
[419705990,1775326238167,-2438.29976958,0.00014468,2]
[419705991,1775326238178,-2860.66086351,0.00014468,2]
[419705992,1775326238188,-2918.63260526,0.00014468,2]
[419705993,1775326238198,-196.94292669,0.00014473,2]
[419705994,1775326238208,-181.1958867,0.00014473,2]
[419705995,1775326238218,-150.0,0.00014484,2]
[419705996,1775326238228,-150.0,0.00014484,2]
[419705997,1775326238238,-150.0,0.00014489,2]
[419705998,1775326238249,-150.0,0.00014514,2]
[419705999,1775326238258,-150.0,0.00014523,2]
[419706000,1775326238268,-150.0,0.00014528,2]
[419706002,1775326238279,-222.89727349,0.00014555,2]
[419706003,1775326238289,-503.74966854,0.00014556,2]
[419706004,1775326238299,-200.0,0.00014556,2]
[419706005,1775326238309,-151.0,0.00014556,2]
[419706006,1775326238319,-151.0,0.00014556,2]
[419706007,1775326238328,-151.0,0.00014556,2]
[419706008,1775326238338,-151.0,0.00014556,2]
[419706009,1775326238347,-151.0,0.00014556,2]
[419706010,1775326238356,-151.0,0.00014556,2]
[419706011,1775326238365,-151.0,0.00014556,2]
[419706012,1775326238374,-151.0,0.00014556,2]
[419706013,1775326238384,-151.0,0.00014556,2]
[419706014,1775326238394,-151.0,0.00014556,2]
[419706015,1775326238404,-496.32304571,0.00014556,2]
[419706016,1775326238413,-151.0,0.00014556,2]
[419706017,1775326238422,-151.0,0.00014556,2]
[419706018,1775326238432,-151.0,0.00014556,2]
[419706019,1775326238441,-151.0,0.00014556,2]
[419706020,1775326238450,-151.0,0.00014556,2]
[419706021,1775326238460,-151.0,0.00014556,2]
[419706022,1775326238469,-151.0,0.00014556,2]
[419706023,1775326238478,-151.0,0.00014556,2]
[419706024,1775326238487,-151.0,0.00014556,2]
[419706025,1775326238498,-151.0,0.00014556,2]
[419706026,1775326238507,-151.0,0.00014556,2]
[419706027,1775326238516,-151.0,0.00014556,2]
[419706028,1775326238526,-151.0,0.00014556,2]
[419706029,1775326238536,-151.0,0.00014556,2]
[419706030,1775326238545,-151.0,0.00014556,2]
[419706031,1775326238555,-273.20808876,0.00014556,2]
[419706032,1775326238564,-500.0,0.00014564,2]
[419706033,1775326238574,-500.0,0.00014564,2]
[419706034,1775326238583,-345.64944269,0.00014564,2]
[419706035,1775326238592,-500.0,0.00014564,2]
[419706036,1775326238601,-200.82912005,0.00014564,2]
[419706037,1775326238610,-500.0,0.00014564,2]
[419706038,1775326238619,-500.0,0.00014564,2]
[419706039,1775326238629,-500.0,0.00014564,2]
[419706040,1775326238638,-500.0,0.00014564,2]
[419706041,1775326238653,-388.38315408,0.00014564,2]
[419706042,1775326238662,-605.88426718,0.00014564,2]
[419706043,1775326238672,-500.0,0.00014564,2]
[419706044,1775326238682,-500.0,0.00014564,2]
[419706045,1775326238691,-1072.04030549,0.00014564,5]
[419706046,1775326238701,-500.0,0.00014564,2]
[419706047,1775326238711,-500.0,0.00014564,2]
[419706048,1775326238720,-500.0,0.00014564,2]
[419706049,1775326238730,-500.0,0.00014564,2]
[419706050,1775326238739,-500.0,0.00014564,2]
[419706051,1775326238749,-500.0,0.00014564,2]
[419706052,1775326238759,-500.0,0.00014564,2]
[419706053,1775326238768,-500.0,0.00014564,2]
[419706054,1775326238778,-500.0,0.00014564,2]
[419706055,1775326238787,-500.0,0.00014564,2]
[419706056,1775326238797,-500.0,0.00014564,2]
[419706057,1775326238806,-500.0,0.00014564,2]
[419706058,1775326238817,-500.0,0.00014564,2]
[419706059,1775326238826,-500.0,0.00014564,2]
[419706060,1775326238836,-509.91183271,0.00014564,2]
[419706061,1775326238846,-323.24561816,0.00014564,2]
[419706062,1775326238856,-500.0,0.00014564,2]
[419706063,1775326238865,-500.0,0.00014564,2]
[419706064,1775326238875,-500.0,0.00014564,2]
[419706065,1775326238885,-500.0,0.00014564,2]
[419706066,1775326238894,-500.0,0.00014564,2]
[419706067,1775326238904,-500.0,0.00014564,2]
[419706068,1775326238914,-500.0,0.00014564,2]
[419706069,1775326238923,-500.0,0.00014564,2]
[419706070,1775326238933,-500.0,0.00014564,2]
[419706071,1775326238942,-500.0,0.00014564,2]
[419706072,1775326238952,-500.0,0.00014564,2]
[419706073,1775326238962,-500.0,0.00014564,2]
[419706074,1775326238971,-500.0,0.00014564,2]
[419706075,1775326238981,-500.0,0.00014564,2]
[419706076,1775326238990,-500.0,0.00014564,2]
[419706077,1775326239000,-500.0,0.00014564,2]
[419706078,1775326239010,-500.0,0.00014564,2]
[419706079,1775326239019,-500.0,0.00014564,2]
[419706080,1775326239029,-490.4395624,0.00014564,2]
[419706081,1775326239038,-500.0,0.00014564,2]
[419706082,1775326239047,-605.52482469,0.00014564,2]
[419706083,1775326239057,-500.0,0.00014564,2]
[419706084,1775326239067,-500.0,0.00014564,2]
[419706085,1775326239076,-500.0,0.00014564,2]
[419706086,1775326239086,-500.0,0.00014564,2]
[419706087,1775326239096,-500.0,0.00014564,2]
[419706088,1775326239105,-264.49213527,0.00014564,2]
[419706089,1775326239114,-896421.64395092,0.00014565,2]
[419706090,1775326239168,-1603578.35604908,0.00014565,2]
[419706091,1775326239178,-150.0,0.00014568,2]
[419706092,1775326239188,-150.0,0.00014568,2]
[419706093,1775326239197,-500.0,0.00014573,2]
[419706094,1775326239207,-500.0,0.00014573,2]
[419706095,1775326239216,-150.0,0.00014578,2]
[419706096,1775326239226,-150.0,0.00014592,2]
[419706097,1775326239236,-160.9357,0.000146,2]
[419706098,1775326239246,-160.9357,0.000146,2]
[419706099,1775326239256,-160.9357,0.000146,2]
[419706100,1775326239265,-160.9357,0.000146,2]
[419706101,1775326239275,-2438.29976955,0.00014627,2]
[419706102,1775326239284,-2860.66086349,0.00014627,2]
[419706103,1775326239294,-150.0,0.00014629,2]
[419706104,1775326239304,-150.0,0.00014629,2]
[419706105,1775326239314,-150.0,0.00014646,2]
[419706106,1775326239324,-293.207809,0.00014646,7]
[419706107,1775326239333,-150.0,0.00014653,2]
[419706108,1775326239343,-150.0,0.00014653,2]
[419706109,1775326239353,-150.0,0.00014656,2]
[419706110,1775326239363,-150.0,0.00014667,2]
[419706111,1775326239375,-160.9357,0.000147,2]
[419706112,1775326239384,-160.9357,0.000147,2]
[419706113,1775326239394,-160.9357,0.000147,2]
[419706114,1775326239404,-160.9357,0.000147,2]
[419706115,1775326239414,-260.28,0.00014706,2]
[419706116,1775326239424,-420.0,0.00014715,2]
[419706117,1775326239433,-150.0,0.0001472,2]
[419706118,1775326239443,-150.0,0.0001472,2]
[419706119,1775326239453,-1472.0,0.00014727,2]
[419706120,1775326239463,-150.0,0.00014737,2]
[419706121,1775326239472,-150.0,0.00014737,2]
[419706122,1775326239482,-150.0,0.00014743,2]
[419706123,1775326239494,-150.0,0.00014756,2]
[419706124,1775326239505,-1680.0,0.00014766,2]
[419706125,1775326239515,-150.0,0.00014769,2]
[419706126,1775326239526,-150.0,0.00014784,2]
[419706127,1775326239536,-2438.29976955,0.00014786,2]
[419706128,1775326239546,-2860.66086349,0.00014786,2]
[419706129,1775326239555,-160.9357,0.000148,2]
[419706130,1775326239565,-160.9357,0.000148,2]
[419706131,1775326239574,-160.9357,0.000148,2]
[419706132,1775326239584,-160.9357,0.000148,2]
[419706133,1775326239594,-150.0,0.000148,2]
[419706134,1775326239604,-255.0,0.0001482,2]
[419706135,1775326239614,-150.0,0.00014821,2]
[419706136,1775326239624,-150.0,0.00014821,2]
[419706137,1775326239634,-200.0,0.00014837,2]
[419706138,1775326239645,-500.0,0.00014837,2]
[419706139,1775326239655,-743.50770149,0.00014837,2]
[419706140,1775326239665,-500.0,0.00014837,2]
[419706141,1775326239675,-500.0,0.00014837,2]
[419706142,1775326239685,-500.0,0.00014837,2]
[419706143,1775326239695,-500.0,0.00014837,2]
[419706144,1775326239704,-500.0,0.00014837,2]
[419706145,1775326239716,-500.0,0.00014837,2]
[419706146,1775326239726,-500.0,0.00014837,2]
[419706148,1775326239736,-319.32250207,0.00014837,2]
[419706150,1775326239746,-151.0,0.00014837,2]
[419706151,1775326239756,-174.61919141,0.00014837,2]
[419706152,1775326239767,-207.78425205,0.00014837,2]
[419706153,1775326239777,-150.0,0.00014844,2]
[419706154,1775326239787,-150.0,0.00014848,2]
[419706155,1775326239797,-150.0,0.00014857,2]
[419706156,1775326239808,-150.0,0.00014857,2]
[419706157,1775326239818,-1472.0,0.00014877,2]
[419706158,1775326239828,-500.0,0.00014892,2]
[419706159,1775326239839,-151.0,0.00014892,2]
[419706160,1775326239848,-150.0,0.00014892,2]
[419706161,1775326239858,-160.9357,0.000149,2]
[419706162,1775326239868,-160.9357,0.000149,2]
[419706163,1775326239878,-160.9357,0.000149,2]
[419706164,1775326239888,-160.9357,0.000149,2]
[419706166,1775326239898,-150.0,0.00014905,2]
[419706167,1775326239908,-150.0,0.00014905,2]
[419706168,1775326239919,-150.0,0.00014912,2]
[419706169,1775326239929,-150.0,0.00014933,2]
[419706170,1775326239939,-2438.29976955,0.00014945,2]
[419706171,1775326239949,-2860.66086349,0.00014945,2]
[419706172,1775326239958,-500.0,0.00014947,2]
[419706173,1775326239968,-151.0,0.00014947,2]
[419706174,1775326239978,-150.0,0.00014971,2]
[419706175,1775326239988,-150.0,0.00014976,2]
[419706176,1775326239999,-150.0,0.00014989,2]
[419706177,1775326240009,-150.0,0.00014989,2]
[419706179,1775326240020,-160.9357,0.00015,2]
[419706180,1775326240029,-160.9357,0.00015,2]
[419706181,1775326240039,-160.9357,0.00015,2]
[419706182,1775326240049,-160.9357,0.00015,2]
[419706183,1775326240058,-500.0,0.00015002,2]
[419706184,1775326240068,-151.0,0.00015002,2]
[419706185,1775326240078,-150.0,0.00015015,2]
[419706186,1775326240087,-2000.0,0.00015018,2]
[419706187,1775326240097,-150.0,0.00015022,2]
[419706188,1775326240107,-150.0,0.0001504,2]
[419706189,1775326240117,-150.0,0.0001504,2]
[419706190,1775326240127,-500.0,0.00015057,2]
[419706191,1775326240137,-151.0,0.00015057,2]
[419706192,1775326240147,-150.0,0.00015074,2]
[419706193,1775326240157,-150.0,0.00015074,2]
[419706194,1775326240179,-168.0,0.0001508,2]
[419706195,1775326240190,-150.0,0.00015086,2]
[419706196,1775326240201,-150.0,0.00015086,2]
[419706197,1775326240210,-1500.0,0.00015087,2]
[419706198,1775326240221,-150.0,0.00015104,2]
[419706199,1775326240231,-200.0,0.00015104,2]
[419706200,1775326240241,-2438.29976955,0.00015104,2]
[419706201,1775326240251,-2860.66086349,0.00015104,2]
[419706202,1775326240261,-150.0,0.00015111,2]
[419706203,1775326240271,-500.0,0.00015112,2]
[419706204,1775326240282,-151.0,0.00015112,2]
[419706205,1775326240293,-599.27710317,0.00015121,2]
[419706206,1775326240303,-1000.0,0.00015121,2]
[419706207,1775326240312,-801.38807768,0.00015122,2]